{"text_format":"1","workbook":"xlsx","n_sheets":5,"sheets":["Notes","Summary","ICB","Organisations","BS"],"not_rendered":{"charts":0,"images":0,"macros":1,"external_links":1,"defined_names":4,"comments":0,"pivot_tables":0},"unopened":[],"bounds":{"document_bytes":16777216,"sheet_cells":100000,"rows_first":2000,"rows_last":500,"rows_between":2000,"halvings":0,"cell_chars":16384,"cell_head_chars":4096},"cells_cut":0,"cells_raw":0,"read":"whole","date_system":"1900"}

{"sheet":"Notes","index":0,"n_rows":2,"n_cols":8,"rows_kept":2,"cut":false,"hidden":false,"merged":[[1,1,1,4]]}
[]
[null,"Post-COVID clinic Friends and Family Test (FFT) data - March 2025",null,null,null,null,null,"  Show data for:"]

{"sheet":"Summary","index":1,"n_rows":7,"n_cols":10,"rows_kept":7,"cut":false,"hidden":false,"merged":[[2,1,3,1],[2,4,2,5],[2,6,2,7],[2,8,2,9]]}
[]
[]
[null,"FFT","Number of organisations submitting","Total responses to date","Responses",null,"Percentage Positive",null,"Percentage Negative"]
[null,null,"2025-03-01","2025-03-01","2025-03-01","2025-02-24","2025-03-01","2025-02-24","2025-03-01","2025-02-24"]
[null,"Post Covid Q1",59,32500,212,267,0.92924528301886788,0.9550561797752809,2.8301886792452831E-2,7.4906367041198503E-3]
[null,"Post Covid Q2",59,17050,193,219,0.96373056994818651,0.9726027397260274,3.6269430051813469E-2,2.7397260273972601E-2]
[null,"Post Covid Q3",59,17772,192,220,0.98958333333333337,0.99090909090909096,1.0416666666666666E-2,9.0909090909090905E-3]

{"sheet":"ICB","index":2,"n_rows":49,"n_cols":24,"rows_kept":49,"cut":false,"hidden":false,"merged":[[3,18,4,18],[3,19,4,19],[3,20,4,20],[3,21,3,23],[2,18,2,20],[2,21,2,23],[3,2,4,2],[3,3,4,3],[3,4,4,4],[3,5,3,10],[3,11,4,11],[3,12,4,12],[3,13,4,13],[3,14,4,14],[2,0,4,0],[2,1,4,1],[2,2,2,4],[2,5,2,10],[2,11,2,14],[2,15,2,17],[3,15,3,17]]}
[]
[]
["ICB Code","ICB Name","Question 1",null,null,"Question 1",null,null,null,null,null,"Question 2",null,null,null,"Question 2",null,null,"Question 3",null,null,"Question 3"]
[null,null,"Total Responses","Percentage Positive","Percentage Negative","Breakdown of Responses",null,null,null,null,null,"Total Responses","Total Eligible","Percentage Positive","Percentage Negative","Breakdown of Responses",null,null,"Total Responses","Percentage Positive","Percentage Negative","Breakdown of Responses"]
[null,null,null,null,null,"Very Good","Good","Neither Good nor Poor","Poor","Very Poor","Don't Know",null,null,null,null,"Yes definitely","Yes to some extent","No",null,null,null,"Yes definitely","Yes to some extent","No"]
[null,"England",212,0.92924528301886788,2.8301886792452831E-2,179,18,7,1,5,2,193,1491,0.96373056994818651,3.6269430051813469E-2,165,21,7,192,0.98958333333333337,1.0416666666666666E-2,181,9,2]
[null,"Selection (excluding suppressed data)",{"$f":"SUBTOTAL(9,C8:C61)","v":212},{"$f":"IFERROR((F7+G7)/SUM(F7:K7), \"-\")","v":0.93406593406593408},{"$f":"IFERROR((I7+J7)/SUM(F7:K7), \"-\")","v":2.7472527472527472E-2},{"$f":"SUBTOTAL(9,F8:F61)","v":154},16,7,0,5,0,193,1491,{"$f":"IFERROR((P7+Q7)/SUM(P7:R7), \"-\")","v":0.96932515337423308},{"$f":"IFERROR(R7/SUM(P7:R7), \"-\")","v":3.0674846625766871E-2},138,20,5,{"$f":"SUBTOTAL(9,S8:S61)","v":192},{"$f":"IFERROR((V7+W7)/SUM(V7:X7), \"-\")","v":0.98765432098765427},{"$f":"IFERROR(X7/SUM(V7:X7), \"-\")","v":1.2345679012345678E-2},{"$f":"SUBTOTAL(9,V8:V61)","v":153},7,2]
["QE1","LANCASHIRE AND SOUTH CUMBRIA ICB",0,"NA","NA",0,0,0,0,0,0,0,0,"NA","NA",0,0,0,0,"NA","NA",0,0,0]
["QF7","SOUTH YORKSHIRE ICB",11,0.90909090909090906,0,10,0,1,0,0,0,11,210,1,0,10,1,0,11,1,0,10,1,0]
["QGH","HEREFORDSHIRE AND WORCESTERSHIRE ICB",0,"NA","NA",0,0,0,0,0,0,0,0,"NA","NA",0,0,0,0,"NA","NA",0,0,0]
["QH8","MID AND SOUTH ESSEX ICB",0,"NA","NA",0,0,0,0,0,0,0,0,"NA","NA",0,0,0,0,"NA","NA",0,0,0]
["QHG","BEDFORDSHIRE, LUTON AND MILTON KEYNES ICB",0,"NA","NA",0,0,0,0,0,0,0,0,"NA","NA",0,0,0,0,"NA","NA",0,0,0]
["QHL","BIRMINGHAM AND SOLIHULL ICB",4,"*","*","*","*","*","*","*","*",4,0,"*","*","*","*","*",4,"*","*","*","*","*"]
["QHM","NORTH EAST AND NORTH CUMBRIA ICB",3,"*","*","*","*","*","*","*","*",3,9,"*","*","*","*","*",3,"*","*","*","*","*"]
["QJ2","DERBY AND DERBYSHIRE ICB",22,0.81818181818181823,9.0909090909090912E-2,16,2,2,0,2,0,22,0,0.90909090909090906,9.0909090909090912E-2,14,6,2,22,1,0,19,3,0]
["QJG","SUFFOLK AND NORTH EAST ESSEX ICB",0,"NA","NA",0,0,0,0,0,0,0,0,"NA","NA",0,0,0,0,"NA","NA",0,0,0]
["QJK","DEVON ICB",1,"*","*","*","*","*","*","*","*",1,1,"*","*","*","*","*",1,"*","*","*","*","*"]
["QJM","LINCOLNSHIRE ICB",21,1,0,17,4,0,0,0,0,21,230,1,0,19,2,0,20,1,0,20,0,0]
["QK1","LEICESTER, LEICESTERSHIRE AND RUTLAND ICB",0,"NA","NA",0,0,0,0,0,0,0,44,"NA","NA",0,0,0,0,"NA","NA",0,0,0]
["QKK","SOUTH EAST LONDON ICB",1,"*","*","*","*","*","*","*","*",1,11,"*","*","*","*","*",1,"*","*","*","*","*"]
["QKS","KENT AND MEDWAY ICB",9,0.66666666666666663,0.1111111111111111,4,2,2,0,1,0,9,4,0.88888888888888884,0.1111111111111111,4,4,1,9,1,0,7,2,0]
["QM7","HERTFORDSHIRE AND WEST ESSEX ICB",0,"NA","NA",0,0,0,0,0,0,0,0,"NA","NA",0,0,0,0,"NA","NA",0,0,0]
["QMF","NORTH EAST LONDON ICB",0,"NA","NA",0,0,0,0,0,0,0,42,"NA","NA",0,0,0,0,"NA","NA",0,0,0]
["QMJ","NORTH CENTRAL LONDON ICB",0,"NA","NA",0,0,0,0,0,0,0,0,"NA","NA",0,0,0,0,"NA","NA",0,0,0]
["QMM","NORFOLK AND WAVENEY ICB",0,"NA","NA",0,0,0,0,0,0,0,0,"NA","NA",0,0,0,0,"NA","NA",0,0,0]
["QNC","STAFFORDSHIRE AND STOKE-ON-TRENT ICB",12,1,0,11,1,0,0,0,0,12,0,1,0,12,0,0,12,1,0,12,0,0]
["QNQ","FRIMLEY ICB",0,"NA","NA",0,0,0,0,0,0,0,0,"NA","NA",0,0,0,0,"NA","NA",0,0,0]
["QNX","SUSSEX ICB",0,"NA","NA",0,0,0,0,0,0,0,0,"NA","NA",0,0,0,0,"NA","NA",0,0,0]
["QOC","SHROPSHIRE, TELFORD AND WREKIN ICB",3,"*","*","*","*","*","*","*","*",3,0,"*","*","*","*","*",3,"*","*","*","*","*"]
["QOP","GREATER MANCHESTER ICB",3,"*","*","*","*","*","*","*","*",3,95,"*","*","*","*","*",3,"*","*","*","*","*"]
["QOQ","HUMBER AND NORTH YORKSHIRE ICB",0,"NA","NA",0,0,0,0,0,0,0,1,"NA","NA",0,0,0,0,"NA","NA",0,0,0]
["QOX","BATH AND NORTH EAST SOMERSET, SWINDON AND WILTSHIRE ICB",0,"NA","NA",0,0,0,0,0,0,0,0,"NA","NA",0,0,0,0,"NA","NA",0,0,0]
["QPM","NORTHAMPTONSHIRE ICB",1,"*","*","*","*","*","*","*","*",1,0,"*","*","*","*","*",1,"*","*","*","*","*"]
["QR1","GLOUCESTERSHIRE ICB",3,"*","*","*","*","*","*","*","*",3,0,"*","*","*","*","*",3,"*","*","*","*","*"]
["QRL","HAMPSHIRE AND ISLE OF WIGHT ICB",26,0.92307692307692313,0,24,0,2,0,0,0,26,772,1,0,24,2,0,26,1,0,26,0,0]
["QRV","NORTH WEST LONDON ICB",0,"NA","NA",0,0,0,0,0,0,0,0,"NA","NA",0,0,0,0,"NA","NA",0,0,0]
["QSL","SOMERSET ICB",0,"NA","NA",0,0,0,0,0,0,0,0,"NA","NA",0,0,0,0,"NA","NA",0,0,0]
["QT1","NOTTINGHAM AND NOTTINGHAMSHIRE ICB",0,"NA","NA",0,0,0,0,0,0,0,1,"NA","NA",0,0,0,0,"NA","NA",0,0,0]
["QT6","CORNWALL AND THE ISLES OF SCILLY ICB",17,0.94117647058823528,5.8823529411764705E-2,13,3,0,0,1,0,17,0,0.94117647058823528,5.8823529411764705E-2,13,3,1,17,0.94117647058823528,5.8823529411764705E-2,16,0,1]
["QU9","BUCKINGHAMSHIRE, OXFORDSHIRE AND BERKSHIRE WEST ICB",22,1,0,19,3,0,0,0,0,22,5,1,0,20,2,0,22,1,0,21,1,0]
["QUA","BLACK COUNTRY ICB",0,"NA","NA",0,0,0,0,0,0,0,0,"NA","NA",0,0,0,0,"NA","NA",0,0,0]
["QUE","CAMBRIDGESHIRE AND PETERBOROUGH ICB",1,"*","*","*","*","*","*","*","*",1,0,"*","*","*","*","*",1,"*","*","*","*","*"]
["QUY","BRISTOL, NORTH SOMERSET AND SOUTH GLOUCESTERSHIRE ICB",0,"NA","NA",0,0,0,0,0,0,0,0,"NA","NA",0,0,0,0,"NA","NA",0,0,0]
["QVV","DORSET ICB",7,0.8571428571428571,0.14285714285714285,"*","*","*","*","*","*",7,0,1,0,"*","*","*",7,1,0,"*","*","*"]
["QWE","SOUTH WEST LONDON ICB",2,"*","*","*","*","*","*","*","*",2,0,"*","*","*","*","*",2,"*","*","*","*","*"]
["QWO","WEST YORKSHIRE ICB",21,1,0,21,0,0,0,0,0,21,48,1,0,21,0,0,21,1,0,21,0,0]
["QWU","COVENTRY AND WARWICKSHIRE ICB",1,"*","*","*","*","*","*","*","*",1,12,"*","*","*","*","*",1,"*","*","*","*","*"]
["QXU","SURREY HEARTLANDS ICB",0,"NA","NA",0,0,0,0,0,0,0,0,"NA","NA",0,0,0,0,"NA","NA",0,0,0]
["QYG","CHESHIRE AND MERSEYSIDE ICB",21,0.95238095238095233,4.7619047619047616E-2,19,1,0,0,1,0,2,6,"*","*",1,0,1,2,"*","*",1,0,1]

{"sheet":"Organisations","index":3,"n_rows":66,"n_cols":33,"rows_kept":66,"cut":false,"hidden":false,"merged":[[3,16,3,18],[3,19,4,19],[3,20,4,20],[3,21,4,21],[3,22,3,24],[2,16,2,18],[2,19,2,21],[2,22,2,24],[2,25,3,32],[3,3,4,3],[3,4,4,4],[3,5,4,5],[3,6,3,11],[3,12,4,12],[3,13,4,13],[2,0,4,0],[2,1,4,1],[2,2,4,2],[2,3,2,5],[2,6,2,11],[2,12,2,15],[3,14,4,14],[3,15,4,15]]}
[]
[]
["ICB Code","Trust Code","Trust Name","Question 1",null,null,"Question 1",null,null,null,null,null,"Question 2",null,null,null,"Question 2",null,null,"Question 3",null,null,"Question 3",null,null,"Mode of Collection - Question 1"]
[null,null,null,"Total Responses","Percentage Positive","Percentage Negative","Breakdown of Responses",null,null,null,null,null,"Total Responses","Total Eligible","Percentage Positive","Percentage Negative","Breakdown of Responses",null,null,"Total Responses","Percentage Positive","Percentage Negative","Breakdown of Responses"]
[null,null,null,null,null,null,"Very Good","Good","Neither Good nor Poor","Poor","Very Poor","Don't Know",null,null,null,null,"Yes definitely","Yes to some extent","No",null,null,null,"Yes definitely","Yes to some extent","No","SMS","Smartphone","Smartphone After","Paper","Paper After","Telephone","Online","Other"]
[null,null,"England",212,0.92924528301886788,2.8301886792452831E-2,179,18,7,1,5,2,193,1491,0.96373056994818651,3.6269430051813469E-2,165,21,7,192,0.98958333333333337,1.0416666666666666E-2,181,9,2,28,3,0,3,26,39,113,0]
[null,null,"Selection (excluding suppressed data)",{"$f":"SUBTOTAL(9,D8:D857)","v":212},{"$f":"IFERROR((G7+H7)/SUM(G7:L7), \"-\")","v":0.92142857142857137},{"$f":"IFERROR((J7+K7)/SUM(G7:L7), \"-\")","v":2.8571428571428571E-2},{"$f":"SUBTOTAL(9,G8:G857)","v":114},15,7,0,4,0,193,1491,{"$f":"IFERROR((Q7+R7)/SUM(Q7:S7), \"-\")","v":0.97142857142857142},{"$f":"IFERROR(S7/SUM(Q7:S7), \"-\")","v":2.8571428571428571E-2},{"$f":"SUBTOTAL(9,Q8:Q857)","v":116},{"$f":"SUBTOTAL(9,R8:R857)","v":20},{"$f":"SUBTOTAL(9,S8:S857)","v":4},{"$f":"SUBTOTAL(9,T8:T857)","v":192},{"$f":"IFERROR((W7+X7)/SUM(W7:Y7), \"-\")","v":0.9939393939393939},{"$f":"IFERROR(Y7/SUM(W7:Y7), \"-\")","v":6.0606060606060606E-3},{"$f":"SUBTOTAL(9,W8:W857)","v":157},{"$f":"SUBTOTAL(9,X8:X857)","v":7},{"$f":"SUBTOTAL(9,Y8:Y857)","v":1},{"$f":"SUBTOTAL(9,Z8:Z857)","v":5},{"$f":"SUBTOTAL(9,AA8:AA857)","v":0},{"$f":"SUBTOTAL(9,AB8:AB857)","v":0},{"$f":"SUBTOTAL(9,AC8:AC857)","v":3},{"$f":"SUBTOTAL(9,AD8:AD857)","v":22},{"$f":"SUBTOTAL(9,AE8:AE857)","v":12},{"$f":"SUBTOTAL(9,AF8:AF857)","v":55},{"$f":"SUBTOTAL(9,AG8:AG857)","v":0}]
["QF7","RXE","ROTHERHAM DONCASTER AND SOUTH HUMBER NHS FOUNDATION TRUST",0,"NA","NA",0,0,0,0,0,0,0,0,"NA","NA",0,0,0,0,"NA","NA",0,0,0,0,0,0,0,0,0,0,0]
["QF7","RHQ","SHEFFIELD TEACHING HOSPITALS NHS FOUNDATION TRUST",11,0.90909090909090906,0,10,0,1,0,0,0,11,210,1,0,10,1,0,11,1,0,10,1,0,5,0,0,3,0,0,3,0]
["QF7","RFR","THE ROTHERHAM NHS FOUNDATION TRUST",0,"NA","NA",0,0,0,0,0,0,0,0,"NA","NA",0,0,0,0,"NA","NA",0,0,0,0,0,0,0,0,0,0,0]
["QHL","RYW","BIRMINGHAM COMMUNITY HEALTHCARE NHS FOUNDATION TRUST",0,"NA","NA",0,0,0,0,0,0,0,0,"NA","NA",0,0,0,0,"NA","NA",0,0,0,0,0,0,0,0,0,0,0]
["QHL","RXK","SANDWELL AND WEST BIRMINGHAM HOSPITALS NHS TRUST",4,"*","*","*","*","*","*","*","*",4,0,"*","*","*","*","*",4,"*","*","*","*","*","*","*","*","*","*","*","*","*"]
["QHM","RR7","GATESHEAD HEALTH NHS FOUNDATION TRUST",0,"NA","NA",0,0,0,0,0,0,0,0,"NA","NA",0,0,0,0,"NA","NA",0,0,0,0,0,0,0,0,0,0,0]
["QHM","RNN","NORTH CUMBRIA INTEGRATED CARE NHS FOUNDATION TRUST",0,"NA","NA",0,0,0,0,0,0,0,0,"NA","NA",0,0,0,0,"NA","NA",0,0,0,0,0,0,0,0,0,0,0]
["QHM","RVW","NORTH TEES AND HARTLEPOOL NHS FOUNDATION TRUST",0,"NA","NA",0,0,0,0,0,0,0,4,"NA","NA",0,0,0,0,"NA","NA",0,0,0,0,0,0,0,0,0,0,0]
["QHM","RTF","NORTHUMBRIA HEALTHCARE NHS FOUNDATION TRUST",0,"NA","NA",0,0,0,0,0,0,0,0,"NA","NA",0,0,0,0,"NA","NA",0,0,0,0,0,0,0,0,0,0,0]
["QHM","RTR","SOUTH TEES HOSPITALS NHS FOUNDATION TRUST",0,"NA","NA",0,0,0,0,0,0,0,5,"NA","NA",0,0,0,0,"NA","NA",0,0,0,0,0,0,0,0,0,0,0]
["QHM","R0B","SOUTH TYNESIDE AND SUNDERLAND NHS FOUNDATION TRUST",3,"*","*","*","*","*","*","*","*",3,0,"*","*","*","*","*",3,"*","*","*","*","*","*","*","*","*","*","*","*","*"]
["QHM","RTD","THE NEWCASTLE UPON TYNE HOSPITALS NHS FOUNDATION TRUST",0,"NA","NA",0,0,0,0,0,0,0,0,"NA","NA",0,0,0,0,"NA","NA",0,0,0,0,0,0,0,0,0,0,0]
["QJ2","RY8","DERBYSHIRE COMMUNITY HEALTH SERVICES NHS FOUNDATION TRUST",22,0.81818181818181823,9.0909090909090912E-2,16,2,2,0,2,0,22,0,0.90909090909090906,9.0909090909090912E-2,14,6,2,22,1,0,19,3,0,0,0,0,0,0,0,0,0]
["QJG","RDE","EAST SUFFOLK AND NORTH ESSEX NHS FOUNDATION TRUST",0,"NA","NA",0,0,0,0,0,0,0,0,"NA","NA",0,0,0,0,"NA","NA",0,0,0,0,0,0,0,0,0,0,0]
["QJG","NQA","PROVIDE",0,"NA","NA",0,0,0,0,0,0,0,0,"NA","NA",0,0,0,0,"NA","NA",0,0,0,0,0,0,0,0,0,0,0]
["QJK","NR5","LIVEWELL SOUTHWEST",1,"*","*","*","*","*","*","*","*",1,1,"*","*","*","*","*",1,"*","*","*","*","*","*","*","*","*","*","*","*","*"]
["QJM","RY5","LINCOLNSHIRE COMMUNITY HEALTH SERVICES NHS TRUST",21,1,0,17,4,0,0,0,0,21,230,1,0,19,2,0,20,1,0,20,0,0,0,0,0,0,0,0,0,0]
["QK1","RWE","UNIVERSITY HOSPITALS OF LEICESTER NHS TRUST",0,"NA","NA",0,0,0,0,0,0,0,44,"NA","NA",0,0,0,0,"NA","NA",0,0,0,0,0,0,0,0,0,0,0]
["QKK","RJ1","GUY'S AND ST THOMAS' NHS FOUNDATION TRUST",1,"*","*","*","*","*","*","*","*",1,11,"*","*","*","*","*",1,"*","*","*","*","*","*","*","*","*","*","*","*","*"]
["QKS","DWN","WEST KENT PRIMARY CARE",9,0.66666666666666663,0.1111111111111111,4,2,2,0,1,0,9,4,0.88888888888888884,0.1111111111111111,4,4,1,9,1,0,7,2,0,0,0,0,0,0,0,9,0]
["QMF","RWK","EAST LONDON NHS FOUNDATION TRUST",0,"NA","NA",0,0,0,0,0,0,0,42,"NA","NA",0,0,0,0,"NA","NA",0,0,0,0,0,0,0,0,0,0,0]
["QMM","RY3","NORFOLK COMMUNITY HEALTH AND CARE NHS TRUST",0,"NA","NA",0,0,0,0,0,0,0,0,"NA","NA",0,0,0,0,"NA","NA",0,0,0,0,0,0,0,0,0,0,0]
["QNC","RRE","MIDLANDS PARTNERSHIP UNIVERSITY NHS FOUNDATION TRUST",12,1,0,11,1,0,0,0,0,12,0,1,0,12,0,0,12,1,0,12,0,0,0,0,0,0,0,12,0,0]
["QNX","RXC","EAST SUSSEX HEALTHCARE NHS TRUST",0,"NA","NA",0,0,0,0,0,0,0,0,"NA","NA",0,0,0,0,"NA","NA",0,0,0,0,0,0,0,0,0,0,0]
["QNX","RDR","SUSSEX COMMUNITY NHS FOUNDATION TRUST",0,"NA","NA",0,0,0,0,0,0,0,0,"NA","NA",0,0,0,0,"NA","NA",0,0,0,0,0,0,0,0,0,0,0]
["QOC","R1D","SHROPSHIRE COMMUNITY HEALTH NHS TRUST",3,"*","*","*","*","*","*","*","*",3,0,"*","*","*","*","*",3,"*","*","*","*","*","*","*","*","*","*","*","*","*"]
["QOP","RMC","BOLTON NHS FOUNDATION TRUST",0,"NA","NA",0,0,0,0,0,0,0,0,"NA","NA",0,0,0,0,"NA","NA",0,0,0,0,0,0,0,0,0,0,0]
["QOP","R0A","MANCHESTER UNIVERSITY NHS FOUNDATION TRUST",0,"NA","NA",0,0,0,0,0,0,0,79,"NA","NA",0,0,0,0,"NA","NA",0,0,0,0,0,0,0,0,0,0,0]
["QOP","RM3","NORTHERN CARE ALLIANCE NHS FOUNDATION TRUST",0,"NA","NA",0,0,0,0,0,0,0,0,"NA","NA",0,0,0,0,"NA","NA",0,0,0,0,0,0,0,0,0,0,0]
["QOP","RWJ","STOCKPORT NHS FOUNDATION TRUST",2,"*","*","*","*","*","*","*","*",2,14,"*","*","*","*","*",2,"*","*","*","*","*","*","*","*","*","*","*","*","*"]
["QOP","RMP","TAMESIDE AND GLOSSOP INTEGRATED CARE NHS FOUNDATION TRUST",1,"*","*","*","*","*","*","*","*",1,2,"*","*","*","*","*",1,"*","*","*","*","*","*","*","*","*","*","*","*","*"]
["QOP","RRF","WRIGHTINGTON, WIGAN AND LEIGH NHS FOUNDATION TRUST",0,"NA","NA",0,0,0,0,0,0,0,0,"NA","NA",0,0,0,0,"NA","NA",0,0,0,0,0,0,0,0,0,0,0]
["QOQ","RJL","NORTHERN LINCOLNSHIRE AND GOOLE NHS FOUNDATION TRUST",0,"NA","NA",0,0,0,0,0,0,0,0,"NA","NA",0,0,0,0,"NA","NA",0,0,0,0,0,0,0,0,0,0,0]
["QOQ","RCB","YORK AND SCARBOROUGH TEACHING HOSPITALS NHS FOUNDATION TRUST",0,"NA","NA",0,0,0,0,0,0,0,1,"NA","NA",0,0,0,0,"NA","NA",0,0,0,0,0,0,0,0,0,0,0]
["QPM","RP1","NORTHAMPTONSHIRE HEALTHCARE NHS FOUNDATION TRUST",1,"*","*","*","*","*","*","*","*",1,0,"*","*","*","*","*",1,"*","*","*","*","*","*","*","*","*","*","*","*","*"]
["QR1","RTQ","GLOUCESTERSHIRE HEALTH AND CARE NHS FOUNDATION TRUST",3,"*","*","*","*","*","*","*","*",3,0,"*","*","*","*","*",3,"*","*","*","*","*","*","*","*","*","*","*","*","*"]
["QRL","RW1","HAMPSHIRE AND ISLE OF WIGHT HEALTHCARE NHS FOUNDATION TRUST",26,0.92307692307692313,0,24,0,2,0,0,0,26,772,1,0,24,2,0,26,1,0,26,0,0,0,0,0,0,0,0,26,0]
["QRV","RYJ","IMPERIAL COLLEGE HEALTHCARE NHS TRUST",0,"NA","NA",0,0,0,0,0,0,0,0,"NA","NA",0,0,0,0,"NA","NA",0,0,0,0,0,0,0,0,0,0,0]
["QRV","R1K","LONDON NORTH WEST UNIVERSITY HEALTHCARE NHS TRUST",0,"NA","NA",0,0,0,0,0,0,0,0,"NA","NA",0,0,0,0,"NA","NA",0,0,0,0,0,0,0,0,0,0,0]
["QT1","NR3","NOTTINGHAM CITYCARE PARTNERSHIP",0,"NA","NA",0,0,0,0,0,0,0,1,"NA","NA",0,0,0,0,"NA","NA",0,0,0,0,0,0,0,0,0,0,0]
["QT6","REF","ROYAL CORNWALL HOSPITALS NHS TRUST",17,0.94117647058823528,5.8823529411764705E-2,13,3,0,0,1,0,17,0,0.94117647058823528,5.8823529411764705E-2,13,3,1,17,0.94117647058823528,5.8823529411764705E-2,16,0,1,0,0,0,0,0,0,17,0]
["QU9","RXQ","BUCKINGHAMSHIRE HEALTHCARE NHS TRUST",0,"NA","NA",0,0,0,0,0,0,0,5,"NA","NA",0,0,0,0,"NA","NA",0,0,0,0,0,0,0,0,0,0,0]
["QU9","RTH","OXFORD UNIVERSITY HOSPITALS NHS FOUNDATION TRUST",22,1,0,19,3,0,0,0,0,22,0,1,0,20,2,0,22,1,0,21,1,0,0,0,0,0,22,0,0,0]
["QUA","RL4","THE ROYAL WOLVERHAMPTON NHS TRUST",0,"NA","NA",0,0,0,0,0,0,0,0,"NA","NA",0,0,0,0,"NA","NA",0,0,0,0,0,0,0,0,0,0,0]
["QUA","RBK","WALSALL HEALTHCARE NHS TRUST",0,"NA","NA",0,0,0,0,0,0,0,0,"NA","NA",0,0,0,0,"NA","NA",0,0,0,0,0,0,0,0,0,0,0]
["QUE","RT1","CAMBRIDGESHIRE AND PETERBOROUGH NHS FOUNDATION TRUST",1,"*","*","*","*","*","*","*","*",1,0,"*","*","*","*","*",1,"*","*","*","*","*","*","*","*","*","*","*","*","*"]
["QVV","RDY","DORSET HEALTHCARE UNIVERSITY NHS FOUNDATION TRUST",7,0.8571428571428571,0.14285714285714285,"*","*","*","*","*","*",7,0,1,0,"*","*","*",7,1,0,7,0,0,"*","*","*","*","*","*","*","*"]
["QWE","RAX","KINGSTON AND RICHMOND NHS FOUNDATION TRUST",0,"NA","NA",0,0,0,0,0,0,0,0,"NA","NA",0,0,0,0,"NA","NA",0,0,0,0,0,0,0,0,0,0,0]
["QWE","RJ7","ST GEORGE'S UNIVERSITY HOSPITALS NHS FOUNDATION TRUST",2,"*","*","*","*","*","*","*","*",2,0,"*","*","*","*","*",2,"*","*","*","*","*","*","*","*","*","*","*","*","*"]
["QWO","RCF","AIREDALE NHS FOUNDATION TRUST",0,"NA","NA",0,0,0,0,0,0,0,0,"NA","NA",0,0,0,0,"NA","NA",0,0,0,0,0,0,0,0,0,0,0]
["QWO","RWY","CALDERDALE AND HUDDERSFIELD NHS FOUNDATION TRUST",2,"*","*","*","*","*","*","*","*",2,0,"*","*","*","*","*",2,"*","*","*","*","*","*","*","*","*","*","*","*","*"]
["QWO","RXF","MID YORKSHIRE TEACHING NHS TRUST",19,1,0,"*","*","*","*","*","*",19,48,1,0,"*","*","*",19,1,0,19,0,0,"*","*","*","*","*","*","*","*"]
["QWU","RLT","GEORGE ELIOT HOSPITAL NHS TRUST",0,"NA","NA",0,0,0,0,0,0,0,0,"NA","NA",0,0,0,0,"NA","NA",0,0,0,0,0,0,0,0,0,0,0]
["QWU","RJC","SOUTH WARWICKSHIRE UNIVERSITY NHS FOUNDATION TRUST",1,"*","*","*","*","*","*","*","*",1,4,"*","*","*","*","*",1,"*","*","*","*","*","*","*","*","*","*","*","*","*"]
["QWU","RKB","UNIVERSITY HOSPITALS COVENTRY AND WARWICKSHIRE NHS TRUST",0,"NA","NA",0,0,0,0,0,0,0,8,"NA","NA",0,0,0,0,"NA","NA",0,0,0,0,0,0,0,0,0,0,0]
["QYG","RXA","CHESHIRE AND WIRRAL PARTNERSHIP NHS FOUNDATION TRUST",0,"NA","NA",0,0,0,0,0,0,0,0,"NA","NA",0,0,0,0,"NA","NA",0,0,0,0,0,0,0,0,0,0,0]
["QYG","RJN","EAST CHESHIRE NHS TRUST",2,"*","*","*","*","*","*","*","*",2,6,"*","*","*","*","*",2,"*","*","*","*","*","*","*","*","*","*","*","*","*"]
["QYG","RW4","MERSEY CARE NHS FOUNDATION TRUST",19,1,0,"*","*","*","*","*","*",0,0,"NA","NA",0,0,0,0,"NA","NA",0,0,0,"*","*","*","*","*","*","*","*"]
["QYG","RBT","MID CHESHIRE HOSPITALS NHS FOUNDATION TRUST",0,"NA","NA",0,0,0,0,0,0,0,0,"NA","NA",0,0,0,0,"NA","NA",0,0,0,0,0,0,0,0,0,0,0]

{"sheet":"BS","index":4,"n_rows":60,"n_cols":59,"rows_kept":60,"cut":false,"hidden":true,"merged":[]}
[null,"Sort","Region (LO) Code","Region (LO) name","Trust code","Trust name","Site Code","Site Name",null,"Sort Lists:","Sort range…","Sort range…","Sort range…","Reference Region List:","Code…","Name…","Linked Region List:","Code…","Name…","Reference Lists:","Code…","Code…","Name…","Code…","Name…","Trusts Linked Lists:","Code…","Name…","Sites Linked Lists:",null,null,null,null,"CSV Headers"]
["Region (LO)",1,1,1,"-","-","-","-",null,null,"ICB Code","ICB Code","ICB Code",null,"QE1","LANCASHIRE AND SOUTH CUMBRIA ICB",null,"QE1","LANCASHIRE AND SOUTH CUMBRIA ICB",null,"QF7","RXE","ROTHERHAM DONCASTER AND SOUTH HUMBER NHS FOUNDATION TRUST",null,null,null,"DWN","AIREDALE NHS FOUNDATION TRUST",null,null,null,null,null,"Breakdown","ICB Code","Trust Code","Trust Name","Q1 - Total Responses","Q1 - Percentage Positive","Q1 - Percentage Negative","Q1 - Very Good","Q1 - Good","Q1 - Neither Good nor Poor","Q1 - Poor","Q1 - Very Poor","Q1 - Don't Know","Q2 - Total Responses","Q2 - Total Eligible","Q2 - Percentage Positive","Q2 - Percentage Negative","Q2 - Yes definitely","Q2 - Yes to some extent","Q2 - No","Q3 - Total Responses","Q3 - Percentage Positive","Q3 - Percentage Negative","Q3 - Yes definitely","Q3 - Yes to some extent","Q3 - No"]
["Trusts",1,1,1,1,1,"-","-",null,null,"ICB Name","Organisation Code","Trust Code",null,"QF7","SOUTH YORKSHIRE ICB",null,"QF7","SOUTH YORKSHIRE ICB",null,"QF7","RHQ","SHEFFIELD TEACHING HOSPITALS NHS FOUNDATION TRUST",null,null,null,"NQA","BIRMINGHAM COMMUNITY HEALTHCARE NHS FOUNDATION TRUST"]
["Site",1,1,1,1,1,1,1,null,null,"Total Responses - Q1","Organisation Name","Trust Name",null,"QGH","HEREFORDSHIRE AND WORCESTERSHIRE ICB",null,"QGH","HEREFORDSHIRE AND WORCESTERSHIRE ICB",null,"QF7","RFR","THE ROTHERHAM NHS FOUNDATION TRUST",null,null,null,"NR3","BOLTON NHS FOUNDATION TRUST",null,null,null,null,null,"Collection Mode","ICB Code","Trust Code","Trust Name","SMS","Smartphone","Smartphone After","Paper","Paper After","Telephone","Online","Other"]
[null,null,null,null,null,null,null,null,null,null,"Percentage Positive - Q1","Total Responses - Q1","Site Code",null,"QH8","MID AND SOUTH ESSEX ICB",null,"QH8","MID AND SOUTH ESSEX ICB",null,"QHL","RYW","BIRMINGHAM COMMUNITY HEALTHCARE NHS FOUNDATION TRUST",null,null,null,"NR5","BUCKINGHAMSHIRE HEALTHCARE NHS TRUST"]
[null,null,null,null,null,null,null,null,null,null,"Percentage Negative - Q1","Percentage Positive - Q1","Site Name",null,"QHG","BEDFORDSHIRE, LUTON AND MILTON KEYNES ICB",null,"QHG","BEDFORDSHIRE, LUTON AND MILTON KEYNES ICB",null,"QHL","RXK","SANDWELL AND WEST BIRMINGHAM HOSPITALS NHS TRUST",null,null,null,"R0A","CALDERDALE AND HUDDERSFIELD NHS FOUNDATION TRUST"]
[null,null,null,null,null,null,null,null,null,null,"Very Good - Q1","Percentage Negative - Q1","Total Responses",null,"QHL","BIRMINGHAM AND SOLIHULL ICB",null,"QHL","BIRMINGHAM AND SOLIHULL ICB",null,"QHM","RR7","GATESHEAD HEALTH NHS FOUNDATION TRUST",null,null,null,"R0B","CAMBRIDGESHIRE AND PETERBOROUGH NHS FOUNDATION TRUST"]
[null,null,null,null,null,null,null,null,null,null,"Good - Q1","Very Good - Q1","Total Eligible",null,"QHM","NORTH EAST AND NORTH CUMBRIA ICB",null,"QHM","NORTH EAST AND NORTH CUMBRIA ICB",null,"QHM","RNN","NORTH CUMBRIA INTEGRATED CARE NHS FOUNDATION TRUST",null,null,null,"R1D","CHESHIRE AND WIRRAL PARTNERSHIP NHS FOUNDATION TRUST"]
[null,null,null,null,null,null,null,null,null,null,"Neither Good nor Poor - Q1","Good - Q1","Percentage Positive",null,"QJ2","DERBY AND DERBYSHIRE ICB",null,"QJ2","DERBY AND DERBYSHIRE ICB",null,"QHM","RVW","NORTH TEES AND HARTLEPOOL NHS FOUNDATION TRUST",null,null,null,"R1K","DERBYSHIRE COMMUNITY HEALTH SERVICES NHS FOUNDATION TRUST"]
[null,null,null,null,null,null,null,null,null,null,"Poor - Q1","Neither Good nor Poor - Q1","Percentage Negative",null,"QJG","SUFFOLK AND NORTH EAST ESSEX ICB",null,"QJG","SUFFOLK AND NORTH EAST ESSEX ICB",null,"QHM","RTF","NORTHUMBRIA HEALTHCARE NHS FOUNDATION TRUST",null,null,null,"RAX","DORSET HEALTHCARE UNIVERSITY NHS FOUNDATION TRUST"]
[null,null,null,null,null,null,null,null,null,null,"Very Poor - Q1","Poor - Q1","Very Good",null,"QJK","DEVON ICB",null,"QJK","DEVON ICB",null,"QHM","RTR","SOUTH TEES HOSPITALS NHS FOUNDATION TRUST",null,null,null,"RBK","EAST CHESHIRE NHS TRUST"]
[null,null,null,null,null,null,null,null,null,null,"Don't Know - Q1","Very Poor - Q1","Good",null,"QJM","LINCOLNSHIRE ICB",null,"QJM","LINCOLNSHIRE ICB",null,"QHM","R0B","SOUTH TYNESIDE AND SUNDERLAND NHS FOUNDATION TRUST",null,null,null,"RBT","EAST LONDON NHS FOUNDATION TRUST"]
[null,null,null,null,null,null,null,null,null,null,"Total Responses - Q2","Don't Know - Q1","Neither Good nor Poor",null,"QK1","LEICESTER, LEICESTERSHIRE AND RUTLAND ICB",null,"QK1","LEICESTER, LEICESTERSHIRE AND RUTLAND ICB",null,"QHM","RTD","THE NEWCASTLE UPON TYNE HOSPITALS NHS FOUNDATION TRUST",null,null,null,"RCB","EAST SUFFOLK AND NORTH ESSEX NHS FOUNDATION TRUST"]
[null,null,null,null,null,null,null,null,null,null,"Total Eligible - Q2","Total Responses - Q2","Poor",null,"QKK","SOUTH EAST LONDON ICB",null,"QKK","SOUTH EAST LONDON ICB",null,"QJ2","RY8","DERBYSHIRE COMMUNITY HEALTH SERVICES NHS FOUNDATION TRUST",null,null,null,"RCF","EAST SUSSEX HEALTHCARE NHS TRUST"]
[null,null,null,null,null,null,null,null,null,null,"Percentage Positive - Q2","Total Eligible - Q2","Very Poor",null,"QKS","KENT AND MEDWAY ICB",null,"QKS","KENT AND MEDWAY ICB",null,"QJG","RDE","EAST SUFFOLK AND NORTH ESSEX NHS FOUNDATION TRUST",null,null,null,"RDE","GATESHEAD HEALTH NHS FOUNDATION TRUST"]
[null,null,null,null,null,null,null,null,null,null,"Percentage Negative - Q2","Percentage Positive - Q2","Don't Know",null,"QM7","HERTFORDSHIRE AND WEST ESSEX ICB",null,"QM7","HERTFORDSHIRE AND WEST ESSEX ICB",null,"QJG","NQA","PROVIDE",null,null,null,"RDR","GEORGE ELIOT HOSPITAL NHS TRUST"]
[null,null,null,null,null,null,null,null,null,null,"Yes definitely - Q2","Percentage Negative - Q2",null,null,"QMF","NORTH EAST LONDON ICB",null,"QMF","NORTH EAST LONDON ICB",null,"QJK","NR5","LIVEWELL SOUTHWEST",null,null,null,"RDY","GLOUCESTERSHIRE HEALTH AND CARE NHS FOUNDATION TRUST"]
[null,null,null,null,null,null,null,null,null,null,"Yes to some extent - Q2","Yes definitely - Q2",null,null,"QMJ","NORTH CENTRAL LONDON ICB",null,"QMJ","NORTH CENTRAL LONDON ICB",null,"QJM","RY5","LINCOLNSHIRE COMMUNITY HEALTH SERVICES NHS TRUST",null,null,null,"REF","GUY'S AND ST THOMAS' NHS FOUNDATION TRUST"]
[null,null,null,null,null,null,null,null,null,null,"No - Q2","Yes to some extent - Q2",null,null,"QMM","NORFOLK AND WAVENEY ICB",null,"QMM","NORFOLK AND WAVENEY ICB",null,"QK1","RWE","UNIVERSITY HOSPITALS OF LEICESTER NHS TRUST",null,null,null,"RFR","HAMPSHIRE AND ISLE OF WIGHT HEALTHCARE NHS FOUNDATION TRUST"]
[null,null,null,null,null,null,null,null,null,null,"Total Responses - Q3","No - Q2",null,null,"QNC","STAFFORDSHIRE AND STOKE-ON-TRENT ICB",null,"QNC","STAFFORDSHIRE AND STOKE-ON-TRENT ICB",null,"QKK","RJ1","GUY'S AND ST THOMAS' NHS FOUNDATION TRUST",null,null,null,"RHQ","IMPERIAL COLLEGE HEALTHCARE NHS TRUST"]
[null,null,null,null,null,null,null,null,null,null,"Percentage Positive - Q3","Total Responses - Q3",null,null,"QNQ","FRIMLEY ICB",null,"QNQ","FRIMLEY ICB",null,"QKS","DWN","WEST KENT PRIMARY CARE",null,null,null,"RJ1","KINGSTON AND RICHMOND NHS FOUNDATION TRUST"]
[null,null,null,null,null,null,null,null,null,null,"Percentage Negative - Q3","Percentage Positive - Q3",null,null,"QNX","SUSSEX ICB",null,"QNX","SUSSEX ICB",null,"QMF","RWK","EAST LONDON NHS FOUNDATION TRUST",null,null,null,"RJ7","LINCOLNSHIRE COMMUNITY HEALTH SERVICES NHS TRUST"]
[null,null,null,null,null,null,null,null,null,null,"Yes definitely - Q3","Percentage Negative - Q3",null,null,"QOC","SHROPSHIRE, TELFORD AND WREKIN ICB",null,"QOC","SHROPSHIRE, TELFORD AND WREKIN ICB",null,"QMM","RY3","NORFOLK COMMUNITY HEALTH AND CARE NHS TRUST",null,null,null,"RJC","LIVEWELL SOUTHWEST"]
[null,null,null,null,null,null,null,null,null,null,"Yes to some extent - Q3","Yes definitely - Q3",null,null,"QOP","GREATER MANCHESTER ICB",null,"QOP","GREATER MANCHESTER ICB",null,"QNC","RRE","MIDLANDS PARTNERSHIP UNIVERSITY NHS FOUNDATION TRUST",null,null,null,"RJL","LONDON NORTH WEST UNIVERSITY HEALTHCARE NHS TRUST"]
[null,null,null,null,null,null,null,null,null,null,"No - Q3","Yes to some extent - Q3",null,null,"QOQ","HUMBER AND NORTH YORKSHIRE ICB",null,"QOQ","HUMBER AND NORTH YORKSHIRE ICB",null,"QNX","RXC","EAST SUSSEX HEALTHCARE NHS TRUST",null,null,null,"RJN","MANCHESTER UNIVERSITY NHS FOUNDATION TRUST"]
[null,null,null,null,null,null,null,null,null,null,null,"No - Q3",null,null,"QOX","BATH AND NORTH EAST SOMERSET, SWINDON AND WILTSHIRE ICB",null,"QOX","BATH AND NORTH EAST SOMERSET, SWINDON AND WILTSHIRE ICB",null,"QNX","RDR","SUSSEX COMMUNITY NHS FOUNDATION TRUST",null,null,null,"RKB","MERSEY CARE NHS FOUNDATION TRUST"]
[null,null,null,null,null,null,null,null,null,null,null,"SMS - Q1",null,null,"QPM","NORTHAMPTONSHIRE ICB",null,"QPM","NORTHAMPTONSHIRE ICB",null,"QOC","R1D","SHROPSHIRE COMMUNITY HEALTH NHS TRUST",null,null,null,"RL4","MID CHESHIRE HOSPITALS NHS FOUNDATION TRUST"]
[null,null,null,null,null,null,null,null,null,null,null,"Smartphone - Q1",null,null,"QR1","GLOUCESTERSHIRE ICB",null,"QR1","GLOUCESTERSHIRE ICB",null,"QOP","RMC","BOLTON NHS FOUNDATION TRUST",null,null,null,"RLT","MID YORKSHIRE TEACHING NHS TRUST"]
[null,null,null,null,null,null,null,null,null,null,null,"Smartphone After - Q1",null,null,"QRL","HAMPSHIRE AND ISLE OF WIGHT ICB",null,"QRL","HAMPSHIRE AND ISLE OF WIGHT ICB",null,"QOP","R0A","MANCHESTER UNIVERSITY NHS FOUNDATION TRUST",null,null,null,"RM3","MIDLANDS PARTNERSHIP UNIVERSITY NHS FOUNDATION TRUST"]
[null,null,null,null,null,null,null,null,null,null,null,"Paper - Q1",null,null,"QRV","NORTH WEST LONDON ICB",null,"QRV","NORTH WEST LONDON ICB",null,"QOP","RM3","NORTHERN CARE ALLIANCE NHS FOUNDATION TRUST",null,null,null,"RMC","NORFOLK COMMUNITY HEALTH AND CARE NHS TRUST"]
[null,null,null,null,null,null,null,null,null,null,null,"Paper After - Q1",null,null,"QSL","SOMERSET ICB",null,"QSL","SOMERSET ICB",null,"QOP","RWJ","STOCKPORT NHS FOUNDATION TRUST",null,null,null,"RMP","NORTH CUMBRIA INTEGRATED CARE NHS FOUNDATION TRUST"]
[null,null,null,null,null,null,null,null,null,null,null,"Telephone - Q1",null,null,"QT1","NOTTINGHAM AND NOTTINGHAMSHIRE ICB",null,"QT1","NOTTINGHAM AND NOTTINGHAMSHIRE ICB",null,"QOP","RMP","TAMESIDE AND GLOSSOP INTEGRATED CARE NHS FOUNDATION TRUST",null,null,null,"RNN","NORTH TEES AND HARTLEPOOL NHS FOUNDATION TRUST"]
[null,null,null,null,null,null,null,null,null,null,null,"Online - Q1",null,null,"QT6","CORNWALL AND THE ISLES OF SCILLY ICB",null,"QT6","CORNWALL AND THE ISLES OF SCILLY ICB",null,"QOP","RRF","WRIGHTINGTON, WIGAN AND LEIGH NHS FOUNDATION TRUST",null,null,null,"RP1","NORTHAMPTONSHIRE HEALTHCARE NHS FOUNDATION TRUST"]
[null,null,null,null,null,null,null,null,null,null,null,"Other - Q1",null,null,"QU9","BUCKINGHAMSHIRE, OXFORDSHIRE AND BERKSHIRE WEST ICB",null,"QU9","BUCKINGHAMSHIRE, OXFORDSHIRE AND BERKSHIRE WEST ICB",null,"QOQ","RJL","NORTHERN LINCOLNSHIRE AND GOOLE NHS FOUNDATION TRUST",null,null,null,"RR7","NORTHERN CARE ALLIANCE NHS FOUNDATION TRUST"]
[null,null,null,null,null,null,null,null,null,null,null,"SMS - Q2",null,null,"QUA","BLACK COUNTRY ICB",null,"QUA","BLACK COUNTRY ICB",null,"QOQ","RCB","YORK AND SCARBOROUGH TEACHING HOSPITALS NHS FOUNDATION TRUST",null,null,null,"RRE","NORTHERN LINCOLNSHIRE AND GOOLE NHS FOUNDATION TRUST"]
[null,null,null,null,null,null,null,null,null,null,null,"Smartphone - Q2",null,null,"QUE","CAMBRIDGESHIRE AND PETERBOROUGH ICB",null,"QUE","CAMBRIDGESHIRE AND PETERBOROUGH ICB",null,"QPM","RP1","NORTHAMPTONSHIRE HEALTHCARE NHS FOUNDATION TRUST",null,null,null,"RRF","NORTHUMBRIA HEALTHCARE NHS FOUNDATION TRUST"]
[null,null,null,null,null,null,null,null,null,null,null,"Smartphone After - Q2",null,null,"QUY","BRISTOL, NORTH SOMERSET AND SOUTH GLOUCESTERSHIRE ICB",null,"QUY","BRISTOL, NORTH SOMERSET AND SOUTH GLOUCESTERSHIRE ICB",null,"QR1","RTQ","GLOUCESTERSHIRE HEALTH AND CARE NHS FOUNDATION TRUST",null,null,null,"RT1","NOTTINGHAM CITYCARE PARTNERSHIP"]
[null,null,null,null,null,null,null,null,null,null,null,"Paper - Q2",null,null,"QVV","DORSET ICB",null,"QVV","DORSET ICB",null,"QRL","RW1","HAMPSHIRE AND ISLE OF WIGHT HEALTHCARE NHS FOUNDATION TRUST",null,null,null,"RTD","OXFORD UNIVERSITY HOSPITALS NHS FOUNDATION TRUST"]
[null,null,null,null,null,null,null,null,null,null,null,"Paper After - Q2",null,null,"QWE","SOUTH WEST LONDON ICB",null,"QWE","SOUTH WEST LONDON ICB",null,"QRV","RYJ","IMPERIAL COLLEGE HEALTHCARE NHS TRUST",null,null,null,"RTF","PROVIDE"]
[null,null,null,null,null,null,null,null,null,null,null,"Telephone - Q2",null,null,"QWO","WEST YORKSHIRE ICB",null,"QWO","WEST YORKSHIRE ICB",null,"QRV","R1K","LONDON NORTH WEST UNIVERSITY HEALTHCARE NHS TRUST",null,null,null,"RTH","ROTHERHAM DONCASTER AND SOUTH HUMBER NHS FOUNDATION TRUST"]
[null,null,null,null,null,null,null,null,null,null,null,"Online - Q2",null,null,"QWU","COVENTRY AND WARWICKSHIRE ICB",null,"QWU","COVENTRY AND WARWICKSHIRE ICB",null,"QT1","NR3","NOTTINGHAM CITYCARE PARTNERSHIP",null,null,null,"RTQ","ROYAL CORNWALL HOSPITALS NHS TRUST"]
[null,null,null,null,null,null,null,null,null,null,null,"Other - Q2",null,null,"QXU","SURREY HEARTLANDS ICB",null,"QXU","SURREY HEARTLANDS ICB",null,"QT6","REF","ROYAL CORNWALL HOSPITALS NHS TRUST",null,null,null,"RTR","SANDWELL AND WEST BIRMINGHAM HOSPITALS NHS TRUST"]
[null,null,null,null,null,null,null,null,null,null,null,"SMS - Q3",null,null,"QYG","CHESHIRE AND MERSEYSIDE ICB",null,"QYG","CHESHIRE AND MERSEYSIDE ICB",null,"QU9","RXQ","BUCKINGHAMSHIRE HEALTHCARE NHS TRUST",null,null,null,"RVW","SHEFFIELD TEACHING HOSPITALS NHS FOUNDATION TRUST"]
[null,null,null,null,null,null,null,null,null,null,null,"Smartphone - Q3",null,null,null,null,null,null,null,null,"QU9","RTH","OXFORD UNIVERSITY HOSPITALS NHS FOUNDATION TRUST",null,null,null,"RW1","SHROPSHIRE COMMUNITY HEALTH NHS TRUST"]
[null,null,null,null,null,null,null,null,null,null,null,"Smartphone After - Q3",null,null,null,null,null,null,null,null,"QUA","RL4","THE ROYAL WOLVERHAMPTON NHS TRUST",null,null,null,"RW4","SOUTH TEES HOSPITALS NHS FOUNDATION TRUST"]
[null,null,null,null,null,null,null,null,null,null,null,"Paper - Q3",null,null,null,null,null,null,null,null,"QUA","RBK","WALSALL HEALTHCARE NHS TRUST",null,null,null,"RWE","SOUTH TYNESIDE AND SUNDERLAND NHS FOUNDATION TRUST"]
[null,null,null,null,null,null,null,null,null,null,null,"Paper After - Q3",null,null,null,null,null,null,null,null,"QUE","RT1","CAMBRIDGESHIRE AND PETERBOROUGH NHS FOUNDATION TRUST",null,null,null,"RWJ","SOUTH WARWICKSHIRE UNIVERSITY NHS FOUNDATION TRUST"]
[null,null,null,null,null,null,null,null,null,null,null,"Telephone - Q3",null,null,null,null,null,null,null,null,"QVV","RDY","DORSET HEALTHCARE UNIVERSITY NHS FOUNDATION TRUST",null,null,null,"RWK","ST GEORGE'S UNIVERSITY HOSPITALS NHS FOUNDATION TRUST"]
[null,null,null,null,null,null,null,null,null,null,null,"Online - Q3",null,null,null,null,null,null,null,null,"QWE","RAX","KINGSTON AND RICHMOND NHS FOUNDATION TRUST",null,null,null,"RWY","STOCKPORT NHS FOUNDATION TRUST"]
[null,null,null,null,null,null,null,null,null,null,null,"Other - Q3",null,null,null,null,null,null,null,null,"QWE","RJ7","ST GEORGE'S UNIVERSITY HOSPITALS NHS FOUNDATION TRUST",null,null,null,"RXA","SUSSEX COMMUNITY NHS FOUNDATION TRUST"]
[null,null,null,null,null,null,null,null,null,null,null,null,null,null,null,null,null,null,null,null,"QWO","RCF","AIREDALE NHS FOUNDATION TRUST",null,null,null,"RXC","TAMESIDE AND GLOSSOP INTEGRATED CARE NHS FOUNDATION TRUST"]
[null,null,null,null,null,null,null,null,null,null,null,null,null,null,null,null,null,null,null,null,"QWO","RWY","CALDERDALE AND HUDDERSFIELD NHS FOUNDATION TRUST",null,null,null,"RXE","THE NEWCASTLE UPON TYNE HOSPITALS NHS FOUNDATION TRUST"]
[null,null,null,null,null,null,null,null,null,null,null,null,null,null,null,null,null,null,null,null,"QWO","RXF","MID YORKSHIRE TEACHING NHS TRUST",null,null,null,"RXF","THE ROTHERHAM NHS FOUNDATION TRUST"]
[null,null,null,null,null,null,null,null,null,null,null,null,null,null,null,null,null,null,null,null,"QWU","RLT","GEORGE ELIOT HOSPITAL NHS TRUST",null,null,null,"RXK","THE ROYAL WOLVERHAMPTON NHS TRUST"]
[null,null,null,null,null,null,null,null,null,null,null,null,null,null,null,null,null,null,null,null,"QWU","RJC","SOUTH WARWICKSHIRE UNIVERSITY NHS FOUNDATION TRUST",null,null,null,"RXQ","UNIVERSITY HOSPITALS COVENTRY AND WARWICKSHIRE NHS TRUST"]
[null,null,null,null,null,null,null,null,null,null,null,null,null,null,null,null,null,null,null,null,"QWU","RKB","UNIVERSITY HOSPITALS COVENTRY AND WARWICKSHIRE NHS TRUST",null,null,null,"RY3","UNIVERSITY HOSPITALS OF LEICESTER NHS TRUST"]
[null,null,null,null,null,null,null,null,null,null,null,null,null,null,null,null,null,null,null,null,"QYG","RXA","CHESHIRE AND WIRRAL PARTNERSHIP NHS FOUNDATION TRUST",null,null,null,"RY5","WALSALL HEALTHCARE NHS TRUST"]
[null,null,null,null,null,null,null,null,null,null,null,null,null,null,null,null,null,null,null,null,"QYG","RJN","EAST CHESHIRE NHS TRUST",null,null,null,"RY8","WEST KENT PRIMARY CARE"]
[null,null,null,null,null,null,null,null,null,null,null,null,null,null,null,null,null,null,null,null,"QYG","RW4","MERSEY CARE NHS FOUNDATION TRUST",null,null,null,"RYJ","WRIGHTINGTON, WIGAN AND LEIGH NHS FOUNDATION TRUST"]
[null,null,null,null,null,null,null,null,null,null,null,null,null,null,null,null,null,null,null,null,"QYG","RBT","MID CHESHIRE HOSPITALS NHS FOUNDATION TRUST",null,null,null,"RYW","YORK AND SCARBOROUGH TEACHING HOSPITALS NHS FOUNDATION TRUST"]